[Event "*** Titled Tuesday 3|2 Blitz"]
[Site "Chess.com"]
[Date "2015.09.01"]
[Round "5"]
[White "AlexanderL"]
[Black "jkidjr22"]
[Result "1-0"]
[WhiteElo "2513"]
[BlackElo "2272"]
[TimeControl "180+2"]
[EndTime "12:03:07 PDT"]
[Termination "AlexanderL won by checkmate"]

1. d4 {[%clk 0:03:01.9]} 1... a6 {[%clk 0:02:55.7]} 2. e4 {[%clk 0:03:00]} 2...
e6 {[%clk 0:02:54.7]} 3. Bd3 {[%clk 0:03:00.2]} 3... b5 {[%clk 0:02:54.8]} 4. f4
{[%clk 0:02:58.6]} 4... Bb7 {[%clk 0:02:55.6]} 5. Nf3 {[%clk 0:02:59.2]} 5...
Nf6 {[%clk 0:02:55.9]} 6. Qe2 {[%clk 0:02:58]} 6... c5 {[%clk 0:02:57.1]} 7. c3
{[%clk 0:02:59.2]} 7... Nc6 {[%clk 0:02:56.5]} 8. a3 {[%clk 0:02:59.4]} 8... Rc8
{[%clk 0:02:55.4]} 9. O-O {[%clk 0:02:58.1]} 9... Be7 {[%clk 0:02:53]} 10. h3
{[%clk 0:02:52.1]} 10... d6 {[%clk 0:02:41.2]} 11. Be3 {[%clk 0:02:47.7]} 11...
Na5 {[%clk 0:02:38.2]} 12. Nbd2 {[%clk 0:02:46.1]} 12... Qd7 {[%clk 0:02:23.9]}
13. Rad1 {[%clk 0:02:41.2]} 13... cxd4 {[%clk 0:02:19.1]} 14. Nxd4 {[%clk
0:02:39.8]} 14... Nc4 {[%clk 0:02:18.1]} 15. Bxc4 {[%clk 0:02:35.7]} 15... bxc4
{[%clk 0:02:19.2]} 16. Bf2 {[%clk 0:02:27.6]} 16... Qc7 {[%clk 0:02:14.6]} 17.
g4 {[%clk 0:02:19.9]} 17... d5 {[%clk 0:02:14.5]} 18. e5 {[%clk 0:02:17.1]}
18... Nd7 {[%clk 0:02:14.9]} 19. Bg3 {[%clk 0:02:09.7]} 19... Qb6 {[%clk
0:02:11.7]} 20. Rb1 {[%clk 0:02:05.5]} 20... g6 {[%clk 0:02:11.8]} 21. f5 {[%clk
0:02:00.9]} 21... O-O {[%clk 0:01:58.8]} 22. f6 {[%clk 0:01:59.6]} 22... Bc5
{[%clk 0:01:59.2]} 23. Bf2 {[%clk 0:02:00.7]} 23... Qc7 {[%clk 0:01:53.8]} 24.
N2f3 {[%clk 0:02:01.2]} 24... Rfe8 {[%clk 0:01:52]} 25. Rbe1 {[%clk 0:01:59.5]}
25... Bf8 {[%clk 0:01:52.5]} 26. Nc2 {[%clk 0:01:47]} 26... Bc6 {[%clk
0:01:50.2]} 27. Bd4 {[%clk 0:01:46.9]} 27... Ba4 {[%clk 0:01:50.6]} 28. Ne3
{[%clk 0:01:47.4]} 28... Rb8 {[%clk 0:01:48]} 29. Rf2 {[%clk 0:01:46.9]} 29...
Nc5 {[%clk 0:01:48]} 30. Bxc5 {[%clk 0:01:47.8]} 30... Bxc5 {[%clk 0:01:48.7]}
31. Qd2 {[%clk 0:01:44.8]} 31... Rb7 {[%clk 0:01:45.6]} 32. Ree2 {[%clk
0:01:43.8]} 32... Reb8 {[%clk 0:01:46.1]} 33. Qe1 {[%clk 0:01:21.7]} 33... Qb6
{[%clk 0:01:39.2]} 34. Kg2 {[%clk 0:01:15.8]} 34... Qa7 {[%clk 0:01:39.5]} 35.
Qc1 {[%clk 0:01:10]} 35... Bc6 {[%clk 0:01:38.2]} 36. Kg3 {[%clk 0:01:06.6]}
36... h6 {[%clk 0:01:28]} 37. Ng2 {[%clk 0:01:05.8]} 37... Bxf2+ {[%clk
0:01:24.5]} 38. Rxf2 {[%clk 0:01:06.9]} 38... Kh7 {[%clk 0:01:24]} 39. Nd4
{[%clk 0:00:57.2]} 39... Be8 {[%clk 0:01:21.3]} 40. Nh4 {[%clk 0:00:44]} 40...
Rb6 {[%clk 0:01:16.3]} 41. Nhf3 {[%clk 0:00:43.4]} 41... Qb7 {[%clk 0:01:07.6]}
42. Ng5+ {[%clk 0:00:43.5]} 42... Kh8 {[%clk 0:00:52.4]} 43. Ne4 {[%clk
0:00:34.8]} 43... Kh7 {[%clk 0:00:51.3]} 44. Ng5+ {[%clk 0:00:35.3]} 44... Kh8
{[%clk 0:00:51.9]} 45. h4 {[%clk 0:00:17.2]} 45... Qc7 {[%clk 0:00:37.1]} 46.
Ngf3 {[%clk 0:00:17.4]} 46... Kh7 {[%clk 0:00:36.8]} 47. h5 {[%clk 0:00:18.8]}
47... R8b7 {[%clk 0:00:34.4]} 48. hxg6+ {[%clk 0:00:17.8]} 48... fxg6 {[%clk
0:00:35.6]} 49. Rh2 {[%clk 0:00:19.1]} 49... h5 {[%clk 0:00:37.1]} 50. gxh5
{[%clk 0:00:10.1]} 50... gxh5 {[%clk 0:00:37.7]} 51. Qg5 {[%clk 0:00:10.8]}
51... Qf7 {[%clk 0:00:37]} 52. Qf4 {[%clk 0:00:05]} 52... Qg6+ {[%clk
0:00:37.5]} 53. Ng5+ {[%clk 0:00:06.4]} 53... Kh6 {[%clk 0:00:33.1]} 54. Kh4
{[%clk 0:00:06.3]} 54... Rxb2 {[%clk 0:00:08.7]} 55. Rxb2 {[%clk 0:00:07.4]}
55... Rxb2 {[%clk 0:00:10.6]} 56. Ndxe6 {[%clk 0:00:08.9]} 56... Rg2 {[%clk
0:00:04.6]} 57. f7 {[%clk 0:00:06.7]} 57... Rg4+ {[%clk 0:00:04.4]} 58. Qxg4
{[%clk 0:00:08]} 58... hxg4 {[%clk 0:00:06.3]} 59. f8=Q+ {[%clk 0:00:09.2]}
59... Qg7 {[%clk 0:00:07.7]} 60. Qxg7# {[%clk 0:00:10.6]} 1-0

[Event "*** Titled Tuesday 3|2 Blitz"]
[Site "Chess.com"]
[Date "2015.09.01"]
[Round "5"]
[White "amazingoid"]
[Black "Storne89"]
[Result "0-1"]
[WhiteElo "2321"]
[BlackElo "2490"]
[TimeControl "180+2"]
[EndTime "12:03:22 PDT"]
[Termination "Storne89 won by resignation"]

1. e4 {[%clk 0:03:01.9]} 1... e5 {[%clk 0:03:00.6]} 2. Nf3 {[%clk 0:03:02.6]}
2... Nc6 {[%clk 0:03:02]} 3. Nc3 {[%clk 0:03:04.2]} 3... Nf6 {[%clk 0:03:02.9]}
4. Bb5 {[%clk 0:03:05.5]} 4... Bd6 {[%clk 0:03:01.4]} 5. O-O {[%clk 0:03:05.6]}
5... O-O {[%clk 0:03:02.2]} 6. d3 {[%clk 0:03:07.1]} 6... a6 {[%clk 0:03:03.3]}
7. Ba4 {[%clk 0:03:07.9]} 7... Re8 {[%clk 0:02:58]} 8. Bg5 {[%clk 0:03:07.7]}
8... h6 {[%clk 0:02:57.2]} 9. Bh4 {[%clk 0:03:08.3]} 9... b5 {[%clk 0:02:57.9]}
10. Bb3 {[%clk 0:03:09.1]} 10... Be7 {[%clk 0:02:58.6]} 11. Re1 {[%clk
0:03:03.9]} 11... d6 {[%clk 0:02:59.7]} 12. h3 {[%clk 0:03:04]} 12... Na5 {[%clk
0:02:59.4]} 13. Bg3 {[%clk 0:02:26.8]} 13... Nxb3 {[%clk 0:01:18.6]} 14. axb3
{[%clk 0:02:27.6]} 14... Bb7 {[%clk 0:01:19.6]} 15. d4 {[%clk 0:02:22]} 15...
exd4 {[%clk 0:01:17.7]} 16. Qxd4 {[%clk 0:02:18.8]} 16... Bf8 {[%clk 0:01:18.6]}
17. Rad1 {[%clk 0:02:05.8]} 17... c5 {[%clk 0:01:14.7]} 18. Qd3 {[%clk
0:02:06.7]} 18... Qb6 {[%clk 0:01:10]} 19. Bh4 {[%clk 0:01:27.6]} 19... Nd7
{[%clk 0:01:00.1]} 20. Nd5 {[%clk 0:01:20.6]} 20... Bxd5 {[%clk 0:01:01.2]} 21.
Qxd5 {[%clk 0:01:21.6]} 21... Rac8 {[%clk 0:01:02.8]} 22. Bg3 {[%clk 0:01:16.2]}
22... Re6 {[%clk 0:01:03.9]} 23. e5 {[%clk 0:01:08.2]} 23... Nxe5 {[%clk
0:00:57.8]} 24. Nxe5 {[%clk 0:01:09.4]} 24... dxe5 {[%clk 0:00:59]} 25. Rxe5
{[%clk 0:01:04.9]} 25... Rd6 {[%clk 0:00:36.8]} 26. Qf3 {[%clk 0:01:05.6]} 26...
Rxd1+ {[%clk 0:00:37.5]} 27. Qxd1 {[%clk 0:01:07.5]} 27... Bd6 {[%clk
0:00:32.1]} 28. Re3 {[%clk 0:00:58.9]} 28... Bxg3 {[%clk 0:00:32.9]} 29. Rxg3
{[%clk 0:01:00.8]} 29... Re8 {[%clk 0:00:32]} 30. Qd5 {[%clk 0:00:56.5]} 30...
Qc7 {[%clk 0:00:26.4]} 31. Qd3 {[%clk 0:00:40.6]} 31... Re1+ {[%clk 0:00:21.9]}
32. Kh2 {[%clk 0:00:41.3]} 32... Re6 {[%clk 0:00:23.3]} 33. Qd5 {[%clk
0:00:34.6]} 33... Qe7 {[%clk 0:00:19]} 34. Rf3 {[%clk 0:00:32]} 34... g6 {[%clk
0:00:19.6]} 35. g3 {[%clk 0:00:29.6]} 35... h5 {[%clk 0:00:20.9]} 36. h4 {[%clk
0:00:29.8]} 36... Kg7 {[%clk 0:00:22.4]} 37. Kg2 {[%clk 0:00:27.3]} 37... Re2
{[%clk 0:00:22.7]} 38. Rc3 {[%clk 0:00:24.8]} 38... Re5 {[%clk 0:00:22.2]} 39.
Qf3 {[%clk 0:00:25.2]} 39... Rf5 {[%clk 0:00:20.1]} 40. Qc6 {[%clk 0:00:25.6]}
40... Qe2 {[%clk 0:00:15.8]} 41. Rf3 {[%clk 0:00:24.5]} 41... Rxf3 {[%clk
0:00:15.8]} 42. Qxf3 {[%clk 0:00:25.2]} 42... Qxc2 {[%clk 0:00:17.4]} 43. Qe3
{[%clk 0:00:26.2]} 43... Qxb2 {[%clk 0:00:14.7]} 44. Qxc5 {[%clk 0:00:21.9]}
44... Qxb3 {[%clk 0:00:15.8]} 45. Qe5+ {[%clk 0:00:23.3]} 45... Kh7 {[%clk
0:00:14.4]} 46. g4 {[%clk 0:00:19.2]} 46... hxg4 {[%clk 0:00:14.4]} 47. h5
{[%clk 0:00:20.7]} 47... Qf3+ {[%clk 0:00:14.3]} 48. Kg1 {[%clk 0:00:21.5]}
48... Qf5 {[%clk 0:00:14.6]} 49. hxg6+ {[%clk 0:00:22.7]} 49... Kxg6 {[%clk
0:00:15.8]} 50. Qd6+ {[%clk 0:00:23.6]} 50... Qe6 {[%clk 0:00:16.9]} 51. Qd3+
{[%clk 0:00:24.4]} 51... f5 {[%clk 0:00:17.4]} 52. Qd8 {[%clk 0:00:25]} 52... f4
{[%clk 0:00:16]} 53. Qb8 {[%clk 0:00:24.1]} 53... Kf5 {[%clk 0:00:16.4]} 54.
Qf8+ {[%clk 0:00:21.9]} 54... Ke4 {[%clk 0:00:17.7]} 55. Qb4+ {[%clk 0:00:23.8]}
55... Qc4 {[%clk 0:00:18.8]} 56. Qe1+ {[%clk 0:00:24.5]} 56... Kd4 {[%clk
0:00:18]} 57. Qa1+ {[%clk 0:00:26.4]} 57... Kc5 {[%clk 0:00:16.1]} 58. Qxa6
{[%clk 0:00:28.3]} 58... b4 {[%clk 0:00:17.6]} 59. Qc8+ {[%clk 0:00:27.8]} 59...
Kb5 {[%clk 0:00:19]} 60. Qb7+ {[%clk 0:00:28.8]} 60... Ka4 {[%clk 0:00:19.6]}
61. Qa8+ {[%clk 0:00:28.5]} 61... Kb3 {[%clk 0:00:21]} 62. Kg2 {[%clk
0:00:28.9]} 62... Kc2 {[%clk 0:00:16.6]} 63. Qe8 {[%clk 0:00:23.6]} 63... b3
{[%clk 0:00:15.9]} 64. Qg6+ {[%clk 0:00:24.7]} 64... Qd3 {[%clk 0:00:15.8]} 65.
Qc6+ {[%clk 0:00:24.8]} 65... Kd1 {[%clk 0:00:15.1]} 66. Qb6 {[%clk 0:00:17.9]}
66... g3 {[%clk 0:00:14.5]} 67. fxg3 {[%clk 0:00:16.5]} 67... Qxg3+ {[%clk
0:00:15.4]} 68. Kf1 {[%clk 0:00:17.7]} 68... Qf3+ {[%clk 0:00:15.3]} 69. Kg1
{[%clk 0:00:18.9]} 69... Qe3+ {[%clk 0:00:16.6]} 0-1

[Event "*** Titled Tuesday 3|2 Blitz"]
[Site "Chess.com"]
[Date "2015.09.01"]
[Round "5"]
[White "Janosik"]
[Black "arnacman"]
[Result "0-1"]
[WhiteElo "2448"]
[BlackElo "2248"]
[TimeControl "180+2"]
[EndTime "12:03:56 PDT"]
[Termination "arnacman won by resignation"]

1. d4 {[%clk 0:03:01.9]} 1... d5 {[%clk 0:03:00.6]} 2. c4 {[%clk 0:03:03.2]}
2... c6 {[%clk 0:03:01.7]} 3. Nf3 {[%clk 0:03:04.5]} 3... Nf6 {[%clk 0:03:02.9]}
4. Nc3 {[%clk 0:03:06.2]} 4... a6 {[%clk 0:03:03.7]} 5. g3 {[%clk 0:03:06.6]}
5... dxc4 {[%clk 0:02:59.5]} 6. a4 {[%clk 0:03:07.2]} 6... e6 {[%clk 0:02:55.8]}
7. Bg2 {[%clk 0:03:08.5]} 7... c5 {[%clk 0:02:56.1]} 8. dxc5 {[%clk 0:03:09.4]}
8... Qxd1+ {[%clk 0:02:55.4]} 9. Nxd1 {[%clk 0:03:11.3]} 9... Bd7 {[%clk
0:02:54.5]} 10. Ne5 {[%clk 0:03:09.1]} 10... Bc6 {[%clk 0:02:54.3]} 11. Nxc6
{[%clk 0:03:08.8]} 11... Nxc6 {[%clk 0:02:51.9]} 12. Ne3 {[%clk 0:02:49]} 12...
Na5 {[%clk 0:02:45.3]} 13. Bd2 {[%clk 0:02:48.9]} 13... Nc6 {[%clk 0:02:16.1]}
14. Rc1 {[%clk 0:02:47.9]} 14... Bxc5 {[%clk 0:02:12.7]} 15. Rxc4 {[%clk
0:02:48.2]} 15... Bd6 {[%clk 0:01:36.8]} 16. Rxc6 {[%clk 0:02:42.4]} 16... bxc6
{[%clk 0:01:37.3]} 17. Bxc6+ {[%clk 0:02:44.3]} 17... Ke7 {[%clk 0:01:38.3]} 18.
Bxa8 {[%clk 0:02:46.2]} 18... Rxa8 {[%clk 0:01:38.8]} 19. O-O {[%clk 0:02:46.8]}
19... Ne4 {[%clk 0:01:36.6]} 20. Rd1 {[%clk 0:02:16.6]} 20... Rb8 {[%clk
0:01:32.2]} 21. Nc4 {[%clk 0:02:10.9]} 21... Bc5 {[%clk 0:01:19.7]} 22. Be1
{[%clk 0:02:07.3]} 22... f6 {[%clk 0:01:09.3]} 23. Kg2 {[%clk 0:02:07.2]} 23...
Bb4 {[%clk 0:00:57.1]} 24. Kf3 {[%clk 0:01:32.7]} 24... Nc5 {[%clk 0:00:53.7]}
25. a5 {[%clk 0:01:19.5]} 25... Bxe1 {[%clk 0:00:33.3]} 26. Rxe1 {[%clk
0:01:21.4]} 26... Rb4 {[%clk 0:00:33.7]} 27. Rc1 {[%clk 0:01:12.8]} 27... Nb3
{[%clk 0:00:33.2]} 28. Rc3 {[%clk 0:01:13.5]} 28... Nd4+ {[%clk 0:00:21.4]} 29.
Ke3 {[%clk 0:01:06.3]} 29... e5 {[%clk 0:00:21.4]} 30. f4 {[%clk 0:01:06.2]}
30... Nb5 {[%clk 0:00:21.5]} 31. Rc1 {[%clk 0:00:58.4]} 31... Ke6 {[%clk
0:00:22.3]} 32. fxe5 {[%clk 0:00:58.7]} 32... fxe5 {[%clk 0:00:23]} 33. Kd2
{[%clk 0:00:41.2]} 33... Kd5 {[%clk 0:00:19.1]} 34. Ne3+ {[%clk 0:00:31.9]}
34... Kd6 {[%clk 0:00:17.2]} 35. Nf5+ {[%clk 0:00:33.2]} 35... Kd5 {[%clk
0:00:17.5]} 36. Rc2 {[%clk 0:00:25.9]} 36... g6 {[%clk 0:00:16.5]} 37. Ne3+
{[%clk 0:00:26.1]} 37... Kd6 {[%clk 0:00:16.8]} 38. Kd3 {[%clk 0:00:20.5]} 38...
Nd4 {[%clk 0:00:16.9]} 39. Rd2 {[%clk 0:00:19.7]} 39... Ke6 {[%clk 0:00:12.8]}
40. Nc4 {[%clk 0:00:17.9]} 40... Nb5 {[%clk 0:00:12.2]} 41. e3 {[%clk
0:00:16.6]} 41... e4+ {[%clk 0:00:11.9]} 42. Kxe4 {[%clk 0:00:14.9]} 42... Rxc4+
{[%clk 0:00:12.5]} 43. Kf3 {[%clk 0:00:15.9]} 43... Rb4 {[%clk 0:00:13.4]} 44.
Rc2 {[%clk 0:00:16.6]} 44... Kd6 {[%clk 0:00:12]} 45. Rd2+ {[%clk 0:00:17.7]}
45... Kc5 {[%clk 0:00:12.5]} 46. g4 {[%clk 0:00:16.4]} 46... Nd6 {[%clk
0:00:12.5]} 47. h4 {[%clk 0:00:17.5]} 47... Nc4 {[%clk 0:00:12.6]} 48. Rd7
{[%clk 0:00:16]} 48... Nxa5 {[%clk 0:00:12.7]} 49. Rxh7 {[%clk 0:00:14.6]} 49...
Rxb2 {[%clk 0:00:11.6]} 50. Rh6 {[%clk 0:00:15.7]} 50... Rb6 {[%clk 0:00:12]}
51. Kf4 {[%clk 0:00:14.5]} 51... Nc4 {[%clk 0:00:12.1]} 52. e4 {[%clk
0:00:16.1]} 52... a5 {[%clk 0:00:12.3]} 53. g5 {[%clk 0:00:13.8]} 53... a4
{[%clk 0:00:12.9]} 54. h5 {[%clk 0:00:15.4]} 54... a3 {[%clk 0:00:13.2]} 55.
hxg6 {[%clk 0:00:16.4]} 55... a2 {[%clk 0:00:13.4]} 56. Rh1 {[%clk 0:00:17.4]}
56... Rb1 {[%clk 0:00:13.3]} 57. g7 {[%clk 0:00:17.6]} 57... Rxh1 {[%clk
0:00:12.8]} 58. g8=Q {[%clk 0:00:18.8]} 58... a1=Q {[%clk 0:00:13.9]} 59. Qf8+
{[%clk 0:00:20.1]} 59... Kb5 {[%clk 0:00:14.7]} 60. Qb8+ {[%clk 0:00:20.7]}
60... Nb6 {[%clk 0:00:15.6]} 61. Qe8+ {[%clk 0:00:20.1]} 61... Ka6 {[%clk
0:00:15.4]} 62. Kf5 {[%clk 0:00:17.2]} 62... Qf1+ {[%clk 0:00:15.1]} 63. Kg6
{[%clk 0:00:18.2]} 63... Qd3 {[%clk 0:00:13.9]} 64. Qe6 {[%clk 0:00:16]} 64...
Rh2 {[%clk 0:00:13]} 65. Qe5 {[%clk 0:00:12.2]} 65... Re2 {[%clk 0:00:13.3]} 66.
Qa1+ {[%clk 0:00:13.2]} 66... Kb7 {[%clk 0:00:13.6]} 67. Qg7+ {[%clk 0:00:13.9]}
67... Qd7 {[%clk 0:00:13.6]} 68. Qe5 {[%clk 0:00:13.9]} 68... Qc6+ {[%clk
0:00:14]} 69. Qf6 {[%clk 0:00:14.1]} 69... Rxe4 {[%clk 0:00:13.5]} 70. Kg7
{[%clk 0:00:15.6]} 70... Qxf6+ {[%clk 0:00:11.9]} 71. gxf6 {[%clk 0:00:17.5]}
71... Nd7 {[%clk 0:00:13.1]} 72. f7 {[%clk 0:00:19.4]} 72... Kc7 {[%clk
0:00:14.1]} 0-1

[Event "*** Titled Tuesday 3|2 Blitz"]
[Site "Chess.com"]
[Date "2015.09.01"]
[Round "6"]
[White "SidArun"]
[Black "Krutoy123"]
[Result "0-1"]
[WhiteElo "1929"]
[BlackElo "2207"]
[TimeControl "180+2"]
[EndTime "12:09:41 PDT"]
[Termination "Krutoy123 won by resignation"]

1. e4 {[%clk 0:03:01.9]} 1... c5 {[%clk 0:03:00.1]} 2. c3 {[%clk 0:03:02.5]}
2... Nf6 {[%clk 0:02:58.9]} 3. e5 {[%clk 0:03:03.4]} 3... Nd5 {[%clk 0:02:59.9]}
4. d4 {[%clk 0:03:04.7]} 4... cxd4 {[%clk 0:03:00.5]} 5. cxd4 {[%clk 0:03:06]}
5... e6 {[%clk 0:03:01.8]} 6. Nf3 {[%clk 0:03:07]} 6... b6 {[%clk 0:03:02.9]} 7.
Nc3 {[%clk 0:03:06.5]} 7... Bb7 {[%clk 0:03:03.5]} 8. Be2 {[%clk 0:03:06.2]}
8... Na6 {[%clk 0:03:04.8]} 9. O-O {[%clk 0:03:06.1]} 9... Nac7 {[%clk
0:03:05.2]} 10. Ne4 {[%clk 0:03:06.8]} 10... Be7 {[%clk 0:02:59.9]} 11. Nfg5
{[%clk 0:03:03.6]} 11... h6 {[%clk 0:02:58.4]} 12. Nh3 {[%clk 0:02:56]} 12...
O-O {[%clk 0:02:56.6]} 13. f4 {[%clk 0:02:57]} 13... f5 {[%clk 0:02:54.8]} 14.
Ng3 {[%clk 0:02:39.4]} 14... d6 {[%clk 0:02:53.4]} 15. Bd2 {[%clk 0:02:28]}
15... Ba6 {[%clk 0:02:53.8]} 16. Bxa6 {[%clk 0:02:27.6]} 16... Nxa6 {[%clk
0:02:55.7]} 17. Qe2 {[%clk 0:02:25.9]} 17... Nac7 {[%clk 0:02:56]} 18. Nf2
{[%clk 0:02:19]} 18... Qd7 {[%clk 0:02:56.5]} 19. Nd3 {[%clk 0:02:19.6]} 19...
Nb5 {[%clk 0:02:55.6]} 20. Be3 {[%clk 0:02:13.9]} 20... Nxe3 {[%clk 0:02:48.5]}
21. Qxe3 {[%clk 0:02:12]} 21... dxe5 {[%clk 0:02:49.3]} 22. dxe5 {[%clk
0:01:58.2]} 22... Rfd8 {[%clk 0:02:49.9]} 23. Rfd1 {[%clk 0:01:50]} 23... Rac8
{[%clk 0:02:45.7]} 24. a4 {[%clk 0:01:36.1]} 24... Nd4 {[%clk 0:02:20.8]} 25. b4
{[%clk 0:01:31.1]} 25... Nc2 {[%clk 0:02:20.9]} 0-1

[Event "*** Titled Tuesday 3|2 Blitz"]
[Site "Chess.com"]
[Date "2015.09.01"]
[Round "6"]
[White "Grootneus"]
[Black "stefanodinn"]
[Result "0-1"]
[WhiteElo "2009"]
[BlackElo "2123"]
[TimeControl "180+2"]
[EndTime "12:10:12 PDT"]
[Termination "stefanodinn won by resignation"]

1. e4 {[%clk 0:03:01.9]} 1... c5 {[%clk 0:02:59.7]} 2. c3 {[%clk 0:03:03.3]}
2... d5 {[%clk 0:02:56.7]} 3. exd5 {[%clk 0:03:05.2]} 3... Qxd5 {[%clk
0:02:57.6]} 4. d4 {[%clk 0:03:06.2]} 4... Nc6 {[%clk 0:02:58.5]} 5. Nf3 {[%clk
0:03:07.5]} 5... Bg4 {[%clk 0:02:59.2]} 6. Be2 {[%clk 0:03:08.8]} 6... cxd4
{[%clk 0:03:00.1]} 7. cxd4 {[%clk 0:03:09.7]} 7... e6 {[%clk 0:03:01.1]} 8. O-O
{[%clk 0:03:10.2]} 8... Nf6 {[%clk 0:03:01.2]} 9. Nc3 {[%clk 0:03:11.1]} 9...
Qa5 {[%clk 0:03:01.5]} 10. h3 {[%clk 0:03:12.6]} 10... Bh5 {[%clk 0:03:01.7]}
11. Be3 {[%clk 0:03:07.3]} 11... Bb4 {[%clk 0:03:01.1]} 12. Qb3 {[%clk
0:02:44.3]} 12... O-O {[%clk 0:03:01.5]} 13. a3 {[%clk 0:02:43.8]} 13... Bxc3
{[%clk 0:03:02.3]} 14. bxc3 {[%clk 0:02:45.7]} 14... Nd5 {[%clk 0:03:03.2]} 15.
c4 {[%clk 0:02:38.9]} 15... Nc3 {[%clk 0:03:03.5]} 16. Qc2 {[%clk 0:02:26.1]}
16... Nxe2+ {[%clk 0:02:48]} 17. Qxe2 {[%clk 0:02:28]} 17... Rfd8 {[%clk
0:02:44.5]} 18. g4 {[%clk 0:02:27.5]} 18... Bg6 {[%clk 0:02:44.5]} 19. Rfd1
{[%clk 0:02:19]} 19... Rd7 {[%clk 0:02:38.3]} 20. Qd2 {[%clk 0:02:19.3]} 20...
Qxd2 {[%clk 0:02:31.3]} 21. Rxd2 {[%clk 0:02:21.2]} 21... Rad8 {[%clk
0:02:31.4]} 22. Rb2 {[%clk 0:02:16.5]} 22... b6 {[%clk 0:02:25.4]} 23. Rd1
{[%clk 0:02:13.6]} 23... Na5 {[%clk 0:02:24.4]} 24. Rc1 {[%clk 0:02:11.1]} 24...
f6 {[%clk 0:02:18.8]} 25. c5 {[%clk 0:02:09.7]} 25... bxc5 {[%clk 0:02:07]} 26.
Rxc5 {[%clk 0:02:00.7]} 26... Nb7 {[%clk 0:02:06.5]} 27. Rc6 {[%clk 0:02:00.4]}
27... Nd6 {[%clk 0:02:04.9]} 28. g5 {[%clk 0:01:42.2]} 28... Be4 {[%clk
0:02:05.1]} 29. Nd2 {[%clk 0:01:39.3]} 29... Bxc6 {[%clk 0:01:54.2]} 0-1

[Event "*** Titled Tuesday 3|2 Blitz"]
[Site "Chess.com"]
[Date "2015.09.01"]
[Round "6"]
[White "Fawolizzo"]
[Black "drifblim"]
[Result "0-1"]
[WhiteElo "1962"]
[BlackElo "2176"]
[TimeControl "180+2"]
[EndTime "12:10:12 PDT"]
[Termination "drifblim won by resignation"]

1. d4 {[%clk 0:01:35.1]} 1... Nf6 {[%clk 0:02:55.7]} 2. c4 {[%clk 0:01:34.6]}
2... e6 {[%clk 0:02:57.6]} 3. Nf3 {[%clk 0:01:34.9]} 3... Bb4+ {[%clk
0:02:59.1]} 4. Bd2 {[%clk 0:01:35]} 4... Qe7 {[%clk 0:03:00.2]} 5. Nc3 {[%clk
0:01:35.1]} 5... Bxc3 {[%clk 0:03:00.6]} 6. Bxc3 {[%clk 0:01:36.1]} 6... Ne4
{[%clk 0:03:01.8]} 7. Qc2 {[%clk 0:01:37]} 7... Nxc3 {[%clk 0:03:02.8]} 8. Qxc3
{[%clk 0:01:37.4]} 8... d6 {[%clk 0:03:04.7]} 9. e4 {[%clk 0:01:37.6]} 9... O-O
{[%clk 0:03:06.6]} 10. Be2 {[%clk 0:01:36.9]} 10... Nc6 {[%clk 0:03:07.8]} 11.
O-O {[%clk 0:01:37.3]} 11... e5 {[%clk 0:03:09.3]} 12. d5 {[%clk 0:01:37.3]}
12... Nb8 {[%clk 0:03:10.6]} 13. h3 {[%clk 0:01:36.8]} 13... a5 {[%clk 0:03:12]}
14. Rac1 {[%clk 0:01:36.9]} 14... f5 {[%clk 0:03:13]} 15. Nd2 {[%clk 0:01:36.1]}
15... f4 {[%clk 0:03:14.4]} 16. f3 {[%clk 0:01:36.9]} 16... Nd7 {[%clk
0:03:13.6]} 17. a3 {[%clk 0:01:35.4]} 17... Nf6 {[%clk 0:03:12.3]} 18. b4 {[%clk
0:01:35]} 18... axb4 {[%clk 0:03:13.9]} 19. axb4 {[%clk 0:01:35.3]} 19... c6
{[%clk 0:03:14.8]} 20. Rfd1 {[%clk 0:01:30.7]} 20... cxd5 {[%clk 0:03:15.8]} 21.
cxd5 {[%clk 0:01:30.4]} 21... Bd7 {[%clk 0:03:17.2]} 22. b5 {[%clk 0:01:12]}
22... Nh5 {[%clk 0:03:17.3]} 23. Qb4 {[%clk 0:01:10.3]} 23... Ng3 {[%clk
0:03:17.8]} 24. Bf1 {[%clk 0:01:10]} 24... Qg5 {[%clk 0:03:12.7]} 25. Kf2 {[%clk
0:01:05.4]} 25... Qh4 {[%clk 0:02:50]} 26. Kg1 {[%clk 0:00:57.1]} 26... Rf6
{[%clk 0:02:50.4]} 27. Nc4 {[%clk 0:00:44.1]} 27... Rg6 {[%clk 0:02:45.2]} 28.
Kh2 {[%clk 0:00:40.5]} 28... Nxf1+ {[%clk 0:02:39.3]} 29. Rxf1 {[%clk
0:00:38.8]} 29... Qg3+ {[%clk 0:02:40.4]} 0-1